[Event "FIDE World Senior-50 CC 2023"]
[Site "Terrasini"]
[Date "2023.11.05"]
[Round "11.4"]
[White "Novik, Maxim"]
[Black "Paschall, William"]
[Result "1-0"]
[ECO "C01"]
[WhiteElo "2375"]
[BlackElo "2329"]
[Annotator "RC"]
[PlyCount "133"]
[EventDate "2023.10.22"]
[EventType "swiss"]
[EventCountry "ITA"]
[SourceTitle "playchess.com"]
[Source "ChessBase"]
[SourceQuality "1"]
[TimeControl "40/5400+30:1800+30"]

1. e4 {[%emt 0:00:01]} e5 {[%emt 0:00:23]} 2. Nf3 {[%emt 0:00:05]} Nf6 {[%emt 0:00:28]} 3. Nxe5 {[%emt 0:00:09]} d6 {[%emt 0:00:16]} 4. Nf3 {[%emt 0:00:05]} Nxe4 {[%emt 0:00:12]} 5. d3 {[%emt 0:00:04]} Nf6 {[%emt 0:00:26]} 6. d4 {[%emt 0:00:05]} d5 {[%emt 0:00:38]} 7. Bd3 {[%emt 0:00:04]} Be7 {[%emt 0:09:26]} 8. h3 {[%emt 0:00:27]} Nbd7 {[%emt 0:04:42]} 9. O-O {[%emt 0:00:48]} Nf8 {[%emt 0:04:42]} 10. Re1 {[%emt 0:00:43]} Ne6 {[%emt 0:01:23]} 11. c4 {[%emt 0:14:36]} dxc4 {[%emt 0:06:38]} 12. Bxc4 {[%emt 0:01:12]} c6 {[%emt 0:03:30]} 13. Nc3 {[%emt 0:17:17]} O-O {[%emt 0:01:25]} 14. Be3 {[%emt 0:02:12]} Nc7 {[%emt 0:06:39]} 15. Qb3 {[%emt 0:01:00]} b5 {[%emt 0:08:33]} 16. Bf1 {[%emt 0:04:55]} Be6 {[%emt 0:05:37]} 17. Qc2 {[%emt 0:00:34]} Ncd5 {[%emt 0:05:09]} 18. Ng5 {[%emt 0:06:25]} Nb4 {[%emt 0:03:17]} 19. Qb1 {[%emt 0:00:40]} Bc4 {[%emt 0:01:35]} 20. Bxc4 {[%emt 0:10:17]} bxc4 {[%emt 0:00:39]} 21. Nf3 {[%emt 0:00:11]} Nd3 {[%emt 0:02:51]} 22. Rd1 {[%emt 0:00:12]} Rb8 {[%emt 0:03:39]} 23. b3 {[%emt 0:00:45]} Nd5 {[%emt 0:02:52]} 24. Nxd5 {[%emt 0:04:45]} cxd5 {[%emt 0:00:37]} 25. Ne5 {[%emt 0:00:29]} Nxe5 {[%emt 0:01:58]} 26. dxe5 {[%emt 0:00:01]} Qa5 {[%emt 0:02:08]} 27. Qf5 {[%emt 0:01:35]} Qa6 {[%emt 0:10:04]} 28. bxc4 {[%emt 0:05:38]} dxc4 {[%emt 0:00:26]} 29. Rd7 {[%emt 0:00:16]} Rb7 {[%emt 0:01:21]} 30. Rad1 {[%emt 0:00:07]} g6 {[%emt 0:06:56]} 31. Qe4 {[%emt 0:01:30]} Rfb8 {[%emt 0:00:32]} 32. Bf4 {[%emt 0:03:54]} Rxd7 {[%emt 0:00:32]} 33. Rxd7 {[%emt 0:00:02]} Bf8 {[%emt 0:03:05]} 34. Qd5 {[%emt 0:06:31]} Qe6 {[%emt 0:00:59]} 35. Qxe6 {[%emt 0:00:47]} fxe6 {[%emt 0:00:05]} 36. Rxa7 {[%emt 0:00:47]} Rc8 {[%emt 0:01:32]} 37. Kf1 {[%emt 0:00:39]} Bg7 {[%emt 0:00:46]} 38. Ra5 {[%emt 0:02:34]} Bf8 {[%emt 0:01:03]} 39. Ke2 {[%emt 0:00:28]} Rb8 {[%emt 0:00:27]} 40. Be3 {[%emt 0:04:01]} Rb2+ {[%emt 0:01:42]} 41. Kf3 {[%emt 0:30:24]} Rb8 {[%emt 0:10:45]} 42. Ra6 {[%emt 0:00:00]} Kf7 {[%emt 0:00:46]} 43. Ra7+ {[%emt 0:00:00]} Kg8 {[%emt 0:01:13]} 44. Ke4 {[%emt 0:00:00]} Rc8 {[%emt 0:00:36]} 45. Ra4 {[%emt 0:00:00]} h5 {[%emt 0:01:18]} 46. Kd4 {[%emt 0:00:00]} Bc5+ {[%emt 0:04:27]} 47. Kc3 {[%emt 0:00:00]} Bxe3 {[%emt 0:00:23]} 48. fxe3 {[%emt 0:00:00]} Rc5 {[%emt 0:00:11]} 49. Rxc4 {[%emt 0:00:00]} Rxe5 {[%emt 0:00:04]} 50. Kd3 {[%emt 0:00:00]} Rd5+ {[%emt 0:01:48]} 51. Rd4 {[%emt 0:00:00]} Rg5 {[%emt 0:00:22]} 52. g4 {[%emt 0:00:00]} h4 {[%emt 0:01:37]} 53. a4 {[%emt 0:00:00]} Rc5 {[%emt 0:00:18]} 54. Rc4 {[%emt 0:00:00]} Rd5+ {[%emt 0:00:13]} 55. Kc3 {[%emt 0:00:00]} Rd1 {[%emt 0:01:22]} 56. a5 {[%emt 0:00:00]} Ra1 {[%emt 0:00:28]} 57. Kb4 {[%emt 0:00:00]} Kf7 {[%emt 0:02:26]} 58. Kb5 {[%emt 0:00:00]} Ke7 {[%emt 0:00:31]} 59. a6 {[%emt 0:00:00]} Kd7 {[%emt 0:01:52]} 60. Ra4 {[%emt 0:00:00]} Rb1+ {[%emt 0:00:39]} 61. Kc4 {[%emt 0:00:00]} Rb8 {[%emt 0:00:42]} 62. a7 {[%emt 0:00:00]} Ra8 {[%emt 0:00:10]} 63. g5 {[%emt 0:00:00]} Kc6 {[%emt 0:00:48]} 64. Kd4 {[%emt 0:00:00]} Kb5 {[%emt 0:00:56]} 65. Ra1 {[%emt 0:00:00]} Kb6 {[%emt 0:03:00]} 66. Ke5 {[%emt 0:00:01]} Kb7 {[%emt 0:00:05]} 67. Kxe6 {[%emt 0:00:11]} 1-0

[Event "FIDE World Senior-50 CC 2023"]
[Site "Terrasini"]
[Date "2023.11.05"]
[Round "11.5"]
[White "Morovic Fernandez, Ivan"]
[Black "Vinter-Schou, Uffe"]
[Result "1-0"]
[ECO "B48"]
[WhiteElo "2488"]
[BlackElo "2345"]
[Annotator "RC"]
[PlyCount "81"]
[EventDate "2023.10.22"]
[EventType "swiss"]
[EventCountry "ITA"]
[SourceTitle "playchess.com"]
[Source "ChessBase"]
[SourceQuality "1"]
[TimeControl "40/5400+30:1800+30"]

1. e4 {[%emt 0:00:27]} c5 {[%emt 0:00:16]} 2. Nf3 {[%emt 0:00:07]} e6 {[%emt 0:00:19]} 3. d4 {[%emt 0:00:09]} cxd4 {[%emt 0:00:05]} 4. Nxd4 {[%emt 0:00:05]} Nc6 {[%emt 0:00:35]} 5. Nc3 {[%emt 0:01:45]} Qc7 {[%emt 0:00:12]} 6. Be3 {[%emt 0:01:08]} a6 {[%emt 0:00:10]} 7. g4 {[%emt 0:01:28]} b5 {[%emt 0:06:47]} 8. Nxc6 {[%emt 0:02:19]} dxc6 {[%emt 0:07:48]} 9. Qf3 {[%emt 0:07:18]} Bd6 {[%emt 0:10:17]} 10. O-O-O {[%emt 0:06:29]} Ne7 {[%emt 0:00:09]} 11. h4 {[%emt 0:05:33]} O-O {[%emt 0:10:47]} 12. h5 {[%emt 0:03:41]} f5 {[%emt 0:00:10]} 13. exf5 {[%emt 0:14:44]} exf5 {[%emt 0:00:06]} 14. g5 {[%emt 0:00:06]} Be6 {[%emt 0:10:35]} 15. h6 {[%emt 0:06:20]} g6 {[%emt 0:01:19]} 16. Bb6 {[%emt 0:07:30]} Qb8 {[%emt 0:00:47]} 17. Rh4 {[%emt 0:05:12]} f4 {[%emt 0:19:08]} 18. Ne4 {[%emt 0:35:09]} Bd5 {[%emt 0:10:43]} 19. Qc3 {[%emt 0:00:00]} Be5 {[%emt 0:00:20]} 20. Bd4 {[%emt 0:00:00]} Bxd4 {[%emt 0:05:25]} 21. Qxd4 {[%emt 0:00:00]} Nf5 {[%emt 0:00:01]} 22. Nf6+ {[%emt 0:00:00]} Kf7 {[%emt 0:02:38]} 23. Qc5 {[%emt 0:00:00]} Qe5 {[%emt 0:08:38]} 24. Nd7 {[%emt 0:00:00]} Qe7 {[%emt 0:02:30]} 25. Qxe7+ {[%emt 0:00:00]} Kxe7 {[%emt 0:00:16]} 26. Nxf8 {[%emt 0:00:00]} Nxh4 {[%emt 0:00:34]} 27. Nxh7 {[%emt 0:00:00]} Nf3 {[%emt 0:02:00]} 28. Bg2 {[%emt 0:00:00]} Rh8 {[%emt 0:00:40]} 29. Bxf3 {[%emt 0:00:00]} Bxf3 {[%emt 0:00:28]} 30. Re1+ {[%emt 0:00:00]} Kf7 {[%emt 0:00:37]} 31. Nf6 {[%emt 0:00:00]} Rd8 {[%emt 0:00:30]} 32. b3 {[%emt 0:00:00]} c5 {[%emt 0:01:00]} 33. Kb2 {[%emt 0:00:51]} Bc6 {[%emt 0:00:13]} 34. Re5 {[%emt 0:00:40]} c4 {[%emt 0:00:46]} 35. Rc5 {[%emt 0:00:20]} Rd6 {[%emt 0:00:03]} 36. bxc4 {[%emt 0:00:59]} Re6 {[%emt 0:00:36]} 37. cxb5 {[%emt 0:01:27]} axb5 {[%emt 0:00:02]} 38. Ng4 {[%emt 0:01:35]} Kg8 {[%emt 0:00:57]} 39. Re5 {[%emt 0:01:25]} Rxe5 {[%emt 0:00:53]} 40. Nxe5 {[%emt 0:00:04]} Be4 {[%emt 0:00:22]} 41. Kc3 {[%emt 0:31:20]} 1-0

[Event "FIDE World Senior-50 CC 2023"]
[Site "Terrasini"]
[Date "2023.11.05"]
[Round "11.6"]
[White "Prasad, Devaki V"]
[Black "Bischoff, Klaus"]
[Result "1/2-1/2"]
[ECO "B54"]
[WhiteElo "2200"]
[BlackElo "2473"]
[Annotator "RC"]
[PlyCount "115"]
[EventDate "2023.10.22"]
[EventType "swiss"]
[EventCountry "ITA"]
[SourceTitle "playchess.com"]
[Source "ChessBase"]
[SourceQuality "1"]
[TimeControl "40/5400+30:1800+30"]

1. e4 {[%emt 0:00:10]} c5 {[%emt 0:00:22]} 2. Nf3 {[%emt 0:00:08]} e6 {[%emt 1:31:08]} 3. d4 {[%emt 0:00:11]} cxd4 {[%emt 0:00:00]} 4. Nxd4 {[%emt 0:00:06]} Nc6 {[%emt 0:00:00]} 5. Nc3 {[%emt 0:00:19]} d6 {[%emt 0:00:00]} 6. g4 {[%emt 0:00:34]} a6 {[%emt 0:00:00]} 7. Be3 {[%emt 0:00:21]} Nge7 {[%emt 0:00:00]} 8. h4 {[%emt 0:08:25]} b5 {[%emt 0:00:00]} 9. f4 {[%emt 0:09:56]} Bb7 {[%emt 0:00:00]} 10. Nb3 {[%emt 0:01:24]} Na5 {[%emt 0:00:00]} 11. Nxa5 {[%emt 0:02:30]} Qxa5 {[%emt 0:00:00]} 12. Bg2 {[%emt 0:00:03]} Nc6 {[%emt 0:00:00]} 13. O-O {[%emt 0:05:31]} Qc7 {[%emt 0:00:00]} 14. Qe1 {[%emt 0:05:14]} Be7 {[%emt 0:00:00]} 15. g5 {[%emt 0:02:09]} O-O {[%emt 0:00:00]} 16. Qf2 {[%emt 0:15:47]} f5 {[%emt 0:00:00]} 17. Bb6 {[%emt 0:04:41]} Qd7 {[%emt 0:00:00]} 18. Rad1 {[%emt 0:01:14]} Rac8 {[%emt 0:00:00]} 19. Rd2 {[%emt 0:05:40]} fxe4 {[%emt 0:00:00]} 20. Nxe4 {[%emt 0:00:43]} Ne5 {[%emt 0:00:00]} 21. b3 {[%emt 0:02:55]} Ng6 {[%emt 0:00:00]} 22. Qg3 {[%emt 0:04:15]} d5 {[%emt 0:00:00]} 23. h5 {[%emt 0:04:47]} Qc6 {[%emt 0:00:00]} 24. Bd4 {[%emt 0:06:44]} dxe4 {[%emt 0:00:00]} 25. hxg6 {[%emt 0:00:05]} hxg6 {[%emt 0:00:00]} 26. Bh3 {[%emt 0:02:06]} Rcd8 {[%emt 0:00:46]} 27. Qc3 {[%emt 0:04:07]} Kf7 {[%emt 0:03:15]} 28. Qxc6 {[%emt 0:03:37]} Bxc6 {[%emt 0:00:03]} 29. c3 {[%emt 0:00:14]} b4 {[%emt 0:00:53]} 30. Rfd1 {[%emt 0:04:46]} bxc3 {[%emt 0:00:51]} 31. Bxc3 {[%emt 0:00:04]} Rxd2 {[%emt 0:01:19]} 32. Rxd2 {[%emt 0:00:30]} Rh8 {[%emt 0:00:47]} 33. Kh2 {[%emt 0:01:16]} e3 {[%emt 0:01:00]} 34. Re2 {[%emt 0:00:54]} Bc5 {[%emt 0:00:27]} 35. Kg3 {[%emt 0:00:11]} Be4 {[%emt 0:00:45]} 36. Bg2 {[%emt 0:02:04]} Bd3 {[%emt 0:00:25]} 37. Re1 {[%emt 0:00:02]} Bf5 {[%emt 0:00:56]} 38. Rd1 {[%emt 0:00:37]} e5 {[%emt 0:01:03]} 39. fxe5 {[%emt 0:01:39]} Ke7 {[%emt 0:03:06]} 40. b4 {[%emt 0:01:25]} Ba7 {[%emt 0:00:32]} 41. Rd6 {[%emt 0:32:09]} e2 {[%emt 0:04:10]} 42. Rxa6 {[%emt 0:00:00]} Bd4 {[%emt 0:00:15]} 43. Be1 {[%emt 0:00:00]} Bd3 {[%emt 0:04:16]} 44. Ra5 {[%emt 0:00:00]} Rc8 {[%emt 0:03:31]} 45. Rd5 {[%emt 0:00:00]} Rc1 {[%emt 0:00:13]} 46. Rxd4 {[%emt 0:00:00]} Rxe1 {[%emt 0:00:06]} 47. Rxd3 {[%emt 0:00:00]} Rd1 {[%emt 0:00:10]} 48. Re3 {[%emt 0:00:00]} Rd3 {[%emt 0:00:54]} 49. Rxd3 {[%emt 0:00:00]} e1=Q+ {[%emt 0:00:04]} 50. Kf3 {[%emt 0:00:00]} Qxb4 {[%emt 0:00:21]} 51. Bh3 {[%emt 0:00:00]} Qh4 {[%emt 0:00:15]} 52. Bg4 {[%emt 0:00:00]} Qxg5 {[%emt 0:00:52]} 53. Rd7+ {[%emt 0:00:00]} Kf8 {[%emt 0:01:31]} 54. e6 {[%emt 0:00:00]} Qe5 {[%emt 0:00:16]} 55. Rf7+ {[%emt 0:00:00]} Ke8 {[%emt 0:00:08]} 56. a4 {[%emt 0:00:00]} Qd5+ {[%emt 0:03:35]} 57. Kg3 {[%emt 0:00:00]} Qe5+ {[%emt 0:00:08]} 58. Kf3 {[%emt 0:00:00]} 1/2-1/2

[Event "FIDE World Senior-50 CC 2023"]
[Site "Terrasini"]
[Date "2023.11.05"]
[Round "11.7"]
[White "Holzke, Frank"]
[Black "Cabe, Arlan"]
[Result "1-0"]
[ECO "B09"]
[WhiteElo "2473"]
[BlackElo "2303"]
[Annotator "RC"]
[PlyCount "69"]
[EventDate "2023.10.22"]
[EventType "swiss"]
[EventCountry "ITA"]
[SourceTitle "playchess.com"]
[Source "ChessBase"]
[SourceQuality "1"]
[TimeControl "40/5400+30:1800+30"]

1. e4 {[%emt 0:00:07]} d6 {[%emt 0:00:33]} 2. d4 {[%emt 0:00:11]} Nf6 {[%emt 0:00:02]} 3. Nc3 {[%emt 0:00:14]} g6 {[%emt 0:00:10]} 4. f4 {[%emt 0:00:22]} Bg7 {[%emt 0:00:23]} 5. Nf3 {[%emt 0:00:08]} c5 {[%emt 0:04:12]} 6. dxc5 {[%emt 0:00:14]} Qa5 {[%emt 0:00:08]} 7. Qd3 {[%emt 0:00:15]} Qxc5 {[%emt 0:02:36]} 8. Be3 {[%emt 0:01:23]} Qa5 {[%emt 0:00:45]} 9. Qb5+ {[%emt 0:07:17]} Qxb5 {[%emt 0:12:13]} 10. Nxb5 {[%emt 0:02:39]} Na6 {[%emt 0:00:23]} 11. Bd3 {[%emt 0:13:26]} Bd7 {[%emt 0:25:10]} 12. Bxa7 {[%emt 0:02:54]} Nh5 {[%emt 0:14:26]} 13. Be3 {[%emt 0:04:45]} Bxb2 {[%emt 0:01:41]} 14. Rb1 {[%emt 0:00:28]} Bg7 {[%emt 0:00:18]} 15. e5 {[%emt 0:05:05]} dxe5 {[%emt 0:19:27]} 16. Nxe5 {[%emt 0:00:43]} Bxe5 {[%emt 0:00:39]} 17. fxe5 {[%emt 0:00:16]} O-O {[%emt 0:01:55]} 18. Na7 {[%emt 0:07:33]} Rab8 {[%emt 0:09:05]} 19. O-O {[%emt 0:01:32]} Be6 {[%emt 0:01:07]} 20. a4 {[%emt 0:03:25]} Ng7 {[%emt 0:01:09]} 21. Bg5 {[%emt 0:05:35]} Rfe8 {[%emt 0:02:01]} 22. Bb5 {[%emt 0:01:02]} Ba2 {[%emt 0:01:49]} 23. Bxe8 {[%emt 0:03:09]} Nxe8 {[%emt 0:00:07]} 24. Rb2 {[%emt 0:00:23]} Bc4 {[%emt 0:00:18]} 25. Rf4 {[%emt 0:00:16]} Be6 {[%emt 0:00:52]} 26. Bxe7 {[%emt 0:00:25]} Nac7 {[%emt 0:00:07]} 27. Bd6 {[%emt 0:02:35]} Ra8 {[%emt 0:00:31]} 28. Bxc7 {[%emt 0:00:54]} Nxc7 {[%emt 0:00:20]} 29. Rxb7 {[%emt 0:00:30]} Na6 {[%emt 0:00:33]} 30. Nc6 {[%emt 0:02:19]} Kf8 {[%emt 0:01:30]} 31. Nd4 {[%emt 0:02:13]} Bd5 {[%emt 0:00:31]} 32. Rd7 {[%emt 0:00:16]} Ba2 {[%emt 0:00:20]} 33. e6 {[%emt 0:00:32]} f5 {[%emt 0:00:10]} 34. Rxh7 {[%emt 0:00:41]} Kg8 {[%emt 0:00:03]} 35. Rfh4 {[%emt 0:00:18]} 1-0

[Event "FIDE World Senior-50 CC 2023"]
[Site "Terrasini"]
[Date "2023.11.05"]
[Round "11.8"]
[White "Cummings, David H."]
[Black "Golovchuk, Oleg"]
[Result "1-0"]
[ECO "A27"]
[WhiteElo "2325"]
[BlackElo "2067"]
[Annotator "RC"]
[PlyCount "59"]
[EventDate "2023.10.22"]
[EventType "swiss"]
[EventCountry "ITA"]
[SourceTitle "playchess.com"]
[Source "ChessBase"]
[SourceQuality "1"]
[TimeControl "40/5400+30:1800+30"]

1. c4 {[%emt 0:00:07]} e5 {[%emt 0:00:37]} 2. Nc3 {[%emt 0:00:08]} Nc6 {[%emt 0:00:38]} 3. Nf3 {[%emt 0:00:21]} f5 {[%emt 0:00:43]} 4. g3 {[%emt 0:00:47]} Nf6 {[%emt 0:03:04]} 5. d4 {[%emt 0:00:46]} e4 {[%emt 0:01:10]} 6. Nh4 {[%emt 0:00:30]} g6 {[%emt 0:07:16]} 7. Bg5 {[%emt 0:00:57]} Bg7 {[%emt 0:00:54]} 8. e3 {[%emt 0:00:50]} Ne7 {[%emt 0:01:35]} 9. Ng2 {[%emt 0:02:31]} d6 {[%emt 0:05:48]} 10. h4 {[%emt 0:01:29]} h6 {[%emt 0:04:46]} 11. Bxf6 {[%emt 0:00:15]} Bxf6 {[%emt 0:00:07]} 12. Nf4 {[%emt 0:00:17]} c6 {[%emt 0:02:58]} 13. Qb3 {[%emt 0:11:35]} Qc7 {[%emt 0:08:55]} 14. Be2 {[%emt 0:04:59]} Bd7 {[%emt 0:05:56]} 15. Qa3 {[%emt 0:03:21]} a6 {[%emt 0:04:12]} 16. g4 {[%emt 0:06:02]} O-O-O {[%emt 0:09:44]} 17. O-O-O {[%emt 0:05:11]} Rdg8 {[%emt 0:08:56]} 18. gxf5 {[%emt 0:02:31]} Bxf5 {[%emt 0:00:46]} 19. f3 {[%emt 0:28:17]} exf3 {[%emt 0:05:23]} 20. Bxf3 {[%emt 0:00:08]} Bxh4 {[%emt 0:00:28]} 21. Rxh4 {[%emt 0:08:49]} g5 {[%emt 0:00:25]} 22. Rg4 {[%emt 0:01:06]} gxf4 {[%emt 0:06:14]} 23. Rxf4 {[%emt 0:00:19]} Rf8 {[%emt 0:03:18]} 24. Rf1 {[%emt 0:02:30]} Be6 {[%emt 0:01:39]} 25. Bg4 {[%emt 0:00:55]} Bxg4 {[%emt 0:01:14]} 26. Rxf8+ {[%emt 0:00:37]} Rxf8 {[%emt 0:00:08]} 27. Rxf8+ {[%emt 0:00:03]} Kd7 {[%emt 0:00:07]} 28. Ne4 {[%emt 0:02:22]} h5 {[%emt 0:01:04]} 29. Nf6+ {[%emt 0:01:17]} Ke6 {[%emt 0:00:06]} 30. Ne8 {[%emt 0:16:30]} 1-0

[Event "FIDE World Senior-50 CC 2023"]
[Site "Terrasini"]
[Date "2023.11.05"]
[Round "11.9"]
[White "Mohr, Georg"]
[Black "Nikolaidis, Konstantinos"]
[Result "0-1"]
[ECO "B88"]
[WhiteElo "2430"]
[BlackElo "2096"]
[Annotator "RC"]
[PlyCount "58"]
[EventDate "2023.10.22"]
[EventType "swiss"]
[EventCountry "ITA"]
[SourceTitle "playchess.com"]
[Source "ChessBase"]
[SourceQuality "1"]
[TimeControl "40/5400+30:1800+30"]

1. e4 {[%emt 0:01:17]} c5 {[%emt 0:00:18]} 2. Nf3 {[%emt 0:00:08]} d6 {[%emt 0:00:22]} 3. d4 {[%emt 0:03:02]} cxd4 {[%emt 0:00:21]} 4. Nxd4 {[%emt 0:00:07]} Nf6 {[%emt 0:00:33]} 5. Nc3 {[%emt 0:01:05]} a6 {[%emt 0:00:34]} 6. Bc4 {[%emt 0:04:24]} e6 {[%emt 0:00:37]} 7. a3 {[%emt 0:00:05]} Nc6 {[%emt 0:04:53]} 8. O-O {[%emt 0:00:57]} Be7 {[%emt 0:08:12]} 9. Kh1 {[%emt 0:04:58]} Bd7 {[%emt 0:07:37]} 10. f4 {[%emt 0:01:38]} O-O {[%emt 0:03:18]} 11. f5 {[%emt 0:01:49]} Nxd4 {[%emt 0:06:50]} 12. Qxd4 {[%emt 0:00:03]} Qc7 {[%emt 0:01:07]} 13. Bg5 {[%emt 0:03:06]} Rac8 {[%emt 0:02:33]} 14. Bb3 {[%emt 0:00:30]} Qc5 {[%emt 0:05:59]} 15. Qd3 {[%emt 0:02:49]} Rfe8 {[%emt 0:03:01]} 16. Be3 {[%emt 0:06:48]} Qa5 {[%emt 0:02:05]} 17. fxe6 {[%emt 0:05:42]} Bxe6 {[%emt 0:03:51]} 18. Rad1 {[%emt 0:06:15]} Qh5 {[%emt 0:03:56]} 19. Bf4 {[%emt 0:15:40]} Red8 {[%emt 0:03:36]} 20. Nd5 {[%emt 0:08:30]} Nxd5 {[%emt 0:05:26]} 21. exd5 {[%emt 0:04:03]} Bg4 {[%emt 0:03:37]} 22. Rde1 {[%emt 0:05:35]} Bh4 {[%emt 0:02:09]} 23. Re3 {[%emt 0:01:29]} Re8 {[%emt 0:02:01]} 24. Qd2 {[%emt 0:05:35]} Be2 {[%emt 0:05:30]} 25. Rb1 {[%emt 0:03:46]} Bf2 {[%emt 0:13:57]} 26. Rxe8+ {[%emt 0:00:19]} Rxe8 {[%emt 0:00:02]} 27. Bxd6 {[%emt 0:00:20]} Re3 {[%emt 0:04:37]} 28. Qb4 {[%emt 0:04:54]} Bd1 {[%emt 0:01:48]} 29. h4 {[%emt 0:04:47]} Bxh4 {[%emt 0:02:04]} 0-1

[Event "FIDE World Senior-50 CC 2023"]
[Site "Terrasini"]
[Date "2023.11.05"]
[Round "11.10"]
[White "Mantovani, Renzo"]
[Black "Sturua, Zurab"]
[Result "0-1"]
[ECO "A01"]
[WhiteElo "2236"]
[BlackElo "2514"]
[Annotator "RC"]
[PlyCount "96"]
[EventDate "2023.10.22"]
[EventType "swiss"]
[EventCountry "ITA"]
[SourceTitle "playchess.com"]
[Source "ChessBase"]
[SourceQuality "1"]
[TimeControl "40/5400+30:1800+30"]

1. b3 {[%emt 0:00:03]} d5 {[%emt 0:02:05]} 2. Bb2 {[%emt 0:00:09]} Bf5 {[%emt 0:00:58]} 3. e3 {[%emt 0:01:22]} e6 {[%emt 0:00:22]} 4. Ne2 {[%emt 0:04:40]} Nd7 {[%emt 0:01:48]} 5. Ng3 {[%emt 0:00:17]} Bg6 {[%emt 0:00:08]} 6. d3 {[%emt 0:04:06]} c6 {[%emt 0:04:22]} 7. Nd2 {[%emt 0:01:22]} f6 {[%emt 0:09:42]} 8. Be2 {[%emt 0:07:20]} Bd6 {[%emt 0:00:42]} 9. O-O {[%emt 0:09:32]} Nh6 {[%emt 0:06:23]} 10. Nf3 {[%emt 0:11:05]} Qe7 {[%emt 0:03:48]} 11. a3 {[%emt 0:02:35]} O-O {[%emt 0:01:05]} 12. c4 {[%emt 0:01:04]} f5 {[%emt 0:08:05]} 13. b4 {[%emt 0:03:41]} e5 {[%emt 0:07:34]} 14. cxd5 {[%emt 0:01:34]} cxd5 {[%emt 0:00:04]} 15. Re1 {[%emt 0:02:20]} Nb6 {[%emt 0:06:39]} 16. d4 {[%emt 0:20:22]} e4 {[%emt 0:00:21]} 17. Ne5 {[%emt 0:00:45]} Be8 {[%emt 0:00:43]} 18. f4 {[%emt 0:01:37]} exf3 {[%emt 0:11:08]} 19. Bxf3 {[%emt 0:04:16]} Bd7 {[%emt 0:00:39]} 20. Nxd7 {[%emt 0:03:18]} Qxd7 {[%emt 0:00:48]} 21. Nf1 {[%emt 0:00:36]} Nf7 {[%emt 0:03:20]} 22. Qb3 {[%emt 0:02:00]} Qe6 {[%emt 0:05:20]} 23. e4 {[%emt 0:04:17]} Ng5 {[%emt 0:03:20]} 24. exd5 {[%emt 0:01:15]} Nxf3+ {[%emt 0:02:29]} 25. Qxf3 {[%emt 0:00:06]} Qxd5 {[%emt 0:00:06]} 26. Qxd5+ {[%emt 0:00:07]} Nxd5 {[%emt 0:00:06]} 27. Ne3 {[%emt 0:00:11]} Nb6 {[%emt 0:00:21]} 28. Rac1 {[%emt 0:01:33]} Rae8 {[%emt 0:04:35]} 29. Rcd1 {[%emt 0:07:04]} f4 {[%emt 0:05:51]} 30. Ng4 {[%emt 0:01:37]} Rxe1+ {[%emt 0:02:10]} 31. Rxe1 {[%emt 0:00:02]} Rc8 {[%emt 0:01:15]} 32. Ne5 {[%emt 0:03:52]} Rc2 {[%emt 0:01:15]} 33. Bc1 {[%emt 0:00:07]} Nd5 {[%emt 0:00:24]} 34. Nd3 {[%emt 0:01:43]} b6 {[%emt 0:03:52]} 35. h4 {[%emt 0:00:44]} Rc3 {[%emt 0:01:06]} 36. Nf2 {[%emt 0:00:51]} Be7 {[%emt 0:01:23]} 37. h5 {[%emt 0:00:42]} Bh4 {[%emt 0:00:39]} 38. Rf1 {[%emt 0:00:35]} Ne3 {[%emt 0:00:58]} 39. Ne4 {[%emt 0:00:19]} Rc4 {[%emt 0:00:47]} 40. Bxe3 {[%emt 0:00:43]} fxe3 {[%emt 0:00:06]} 41. g3 {[%emt 0:00:40]} Rxd4 {[%emt 0:00:47]} 42. gxh4 {[%emt 0:08:01]} Rxe4 {[%emt 0:00:22]} 43. Re1 {[%emt 0:00:13]} Kf7 {[%emt 0:01:38]} 44. h6 {[%emt 0:00:06]} Rg4+ {[%emt 0:01:19]} 45. Kf1 {[%emt 0:00:42]} Rxh4 {[%emt 0:00:09]} 46. Rxe3 {[%emt 0:00:17]} Rxh6 {[%emt 0:00:06]} 47. Rc3 {[%emt 0:00:19]} Re6 {[%emt 0:00:50]} 48. Kf2 {[%emt 0:00:11]} Kf6 {[%emt 0:32:32]} 0-1

[Event "FIDE World Senior-50 CC 2023"]
[Site "Terrasini"]
[Date "2023.11.05"]
[Round "11.11"]
[White "Degraeve, Jean-Marc"]
[Black "Mussanti, Diego"]
[Result "0-1"]
[ECO "B40"]
[WhiteElo "2479"]
[BlackElo "2183"]
[Annotator "RC"]
[PlyCount "72"]
[EventDate "2023.10.22"]
[EventType "swiss"]
[EventCountry "ITA"]
[SourceTitle "playchess.com"]
[Source "ChessBase"]
[SourceQuality "1"]
[TimeControl "40/5400+30:1800+30"]

1. e4 {[%emt 0:00:17]} c5 {[%emt 0:02:18]} 2. Nf3 {[%emt 0:00:07]} e6 {[%emt 0:00:14]} 3. c3 {[%emt 0:00:08]} d5 {[%emt 0:00:27]} 4. e5 {[%emt 0:00:05]} d4 {[%emt 0:00:19]} 5. d3 {[%emt 0:00:06]} Nc6 {[%emt 0:05:36]} 6. g3 {[%emt 0:00:22]} Nge7 {[%emt 0:08:01]} 7. Bg2 {[%emt 0:00:13]} Ng6 {[%emt 0:01:42]} 8. Qe2 {[%emt 0:00:26]} Qc7 {[%emt 0:01:29]} 9. Na3 {[%emt 0:01:18]} a6 {[%emt 0:07:51]} 10. cxd4 {[%emt 0:10:15]} cxd4 {[%emt 0:01:13]} 11. Nc4 {[%emt 0:00:24]} Bb4+ {[%emt 0:05:53]} 12. Bd2 {[%emt 0:00:10]} Bxd2+ {[%emt 0:01:32]} 13. Kxd2 {[%emt 0:00:15]} O-O {[%emt 0:00:27]} 14. Rhc1 {[%emt 0:00:07]} Bd7 {[%emt 0:09:02]} 15. Ke1 {[%emt 0:01:03]} Rad8 {[%emt 0:00:28]} 16. h4 {[%emt 0:04:20]} h6 {[%emt 0:09:55]} 17. h5 {[%emt 0:11:20]} Nge7 {[%emt 0:01:10]} 18. Nfd2 {[%emt 0:00:12]} Qb8 {[%emt 0:03:41]} 19. Nb3 {[%emt 0:02:50]} Nb4 {[%emt 0:07:04]} 20. a3 {[%emt 0:01:12]} Ba4 {[%emt 0:02:55]} 21. Nc5 {[%emt 0:02:54]} Bc6 {[%emt 0:08:03]} 22. axb4 {[%emt 0:19:56]} Bxg2 {[%emt 0:00:08]} 23. f3 {[%emt 0:00:11]} Bh3 {[%emt 0:00:40]} 24. g4 {[%emt 0:00:07]} Nd5 {[%emt 0:04:59]} 25. Kf2 {[%emt 0:02:04]} f5 {[%emt 0:02:10]} 26. Kg3 {[%emt 0:17:40]} fxg4 {[%emt 0:00:42]} 27. fxg4 {[%emt 0:00:02]} Nf4 {[%emt 0:00:24]} 28. Qd2 {[%emt 0:00:04]} Bg2 {[%emt 0:00:34]} 29. Rg1 {[%emt 0:00:54]} Bd5 {[%emt 0:01:00]} 30. Raf1 {[%emt 0:00:34]} Bxc4 {[%emt 0:01:29]} 31. Rxf4 {[%emt 0:05:17]} Bd5 {[%emt 0:00:09]} 32. Rxf8+ {[%emt 0:00:12]} Rxf8 {[%emt 0:00:16]} 33. Re1 {[%emt 0:07:48]} Rf3+ {[%emt 0:02:52]} 34. Kh2 {[%emt 0:00:01]} Qd8 {[%emt 0:02:45]} 35. g5 {[%emt 0:00:03]} Qf8 {[%emt 0:00:12]} 36. Re2 {[%emt 0:01:00]} Qf5 {[%emt 0:00:31]} 0-1